fUSD/lending_fUSD_20240903
["ID","MTS","AMOUNT","RATE_DAILY","PERIOD"]
[337020655,1725325832399,-25.97773095,0.000155,2]
[337020657,1725325832411,-502.90722895,0.000155,2]
[337020659,1725325832423,-590.62513489,0.000155,2]
[337020661,1725325832432,-300.0,0.00015999,2]
[337020663,1725325832442,-3145.866693,0.00016,2]
[337020665,1725325832452,-577.95381115,0.00016164,2]
[337020667,1725325832462,-500.0,0.00016164,2]
[337020670,1725325832472,-557.0,0.00016299,2]
[337020672,1725325832482,-207.0,0.00016299,2]
[337020674,1725325832491,-810.0,0.00016299,2]
[337020676,1725325832501,-499.99,0.00016299,2]
[337020678,1725325832510,-999.99,0.00016299,2]
[337020680,1725325832520,-1015.12,0.00016299,2]
[337020682,1725325832530,-700.0,0.00016438,2]
[337020684,1725325832539,-809.0,0.000166,2]
[337020686,1725325832550,-250.0,0.00016867,2]
[337020688,1725325832559,-150.0,0.00016881,2]
[337020689,1725325832569,-250.0,0.00016884,2]
[337020690,1725325832579,-174.22,0.00016927,2]
[337020691,1725325832588,-2562.91,0.00016969,2]
[337020692,1725325832602,-1000.0,0.00017,2]
[337020693,1725325832611,-536.11,0.00017003,2]
[337020694,1725325832620,-550.0,0.00017076,2]
[337020695,1725325832630,-493.91,0.00017077,2]
[337020696,1725325832640,-200.0,0.00017077,2]
[337020697,1725325832651,-23900.0,0.00017077,2]
[337020698,1725325832661,-358.0,0.000171,2]
[337020699,1725325832671,-1000.0,0.000171,2]
[337020700,1725325832682,-226.0,0.000171,2]
[337020701,1725325832692,-514.1,0.000171,2]
[337020702,1725325832701,-1000.0,0.00017125,2]
[337020703,1725325832711,-1242.94,0.00017126,2]
[337020704,1725325832721,-250.0,0.00017164,2]
[337020705,1725325832730,-150.0,0.0001726,2]
[337020706,1725325832740,-391.04,0.0001736,2]
[337020707,1725325832749,-196.56,0.00017405,2]
[337020708,1725325832759,-164.16,0.00017429,2]
[337020709,1725325832770,-172.57,0.00017489,2]
[337020710,1725325832779,-420.0,0.00017492,2]
[337020711,1725325832791,-500.0,0.00017534,2]
[337020712,1725325832801,-7944.51726412,0.00017572,2]
[337020713,1725325832812,-609.67999998,0.00017572,2]
[337020714,1725325832824,-284.2091432,0.00017572,2]
[337020715,1725325832836,-15753.8226909,0.00017572,2]
[337020716,1725325832848,-2999.0,0.00017572,2]
[337020717,1725325832859,-307.8334,0.00017572,2]
[337020718,1725325832871,-516.47725402,0.00017572,2]
[337020719,1725325832886,-259.6047745,0.00017572,2]
[337020720,1725325832898,-138.01347328,0.00017572,2]
[337020721,1725325832907,-175.39,0.00017592,2]
[337020722,1725325832917,-222.44803752,0.00017651,2]
[337020723,1725325832929,-1936.87128191,0.00017651,2]
[337020724,1725325832943,-270.26587227,0.00017651,2]
[337020725,1725325832955,-13024.37793672,0.00017651,2]
[337020726,1725325832967,-9333.96215924,0.00017651,2]
[337020727,1725325832976,-1000.0,0.00017677,2]
[337020728,1725325832986,-157.16,0.00017771,2]
[337020729,1725325832996,-157.16,0.00017776,2]
[337020730,1725325833005,-157.16,0.00017782,2]
[337020731,1725325833015,-157.16,0.00017788,2]
[337020732,1725325833026,-157.16,0.00017793,2]
[337020733,1725325833037,-157.16,0.00017799,2]
[337020734,1725325833047,-157.16,0.00017804,2]
[337020735,1725325833057,-700.0,0.00017808,2]
[337020736,1725325833067,-157.16,0.0001781,2]
[337020737,1725325833077,-157.16,0.00017815,2]
[337020738,1725325833087,-157.16,0.00017821,2]
[337020739,1725325833098,-157.16,0.00017826,2]
[337020740,1725325833108,-157.16,0.00017832,2]
[337020741,1725325833118,-440.3831,0.00017836,2]
[337020742,1725325833128,-157.16,0.00017838,2]
[337020743,1725325833138,-157.16,0.00017843,2]
[337020744,1725325833148,-157.16,0.00017849,2]
[337020745,1725325833159,-157.16,0.00017854,2]
[337020746,1725325833170,-157.16,0.0001786,2]
[337020747,1725325833180,-2000.0,0.00018,2]
[337020748,1725325833190,-350.0,0.00018,2]
[337020749,1725325833200,-150.000001,0.00018,2]
[337020750,1725325833210,-150.0,0.00018219,2]
[337020751,1725325833219,-1000.0,0.000185,2]
[337020752,1725325833229,-500.0,0.0001863,2]
[337020753,1725325833239,-250.78,0.0001871,2]
[337020754,1725325833249,-328.29,0.00018737,2]
[337020755,1725325833259,-700.0,0.00018904,2]
[337020756,1725325833269,-150.0,0.0001891,2]
[337020757,1725325833279,-1500.0,0.00018916,2]
[337020758,1725325833290,-150.0,0.00018916,2]
[337020759,1725325833304,-300.70201465,0.00018942,2]
[337020760,1725325833314,-42867.95825298,0.00018978,2]
[337020761,1725325833325,-3149.31533307,0.00018978,2]
[337020762,1725325833334,-8861.0581,0.00018978,2]
[337020763,1725325833343,-3000.0,0.00019,2]
[337020764,1725325833353,-400.0,0.00019,4]
[337020765,1725325833362,-350.0,0.00019,2]
[337020766,1725325833375,-350.0,0.00019,2]
[337020767,1725325833384,-150.0,0.00019005,2]
[337020768,1725325833394,-1500.0,0.0001901,2]
[337020769,1725325833403,-1500.0,0.00019026,2]
[337020770,1725325833412,-150.0,0.0001903,2]
[337020771,1725325833422,-150.0,0.00019031,2]
[337020772,1725325833431,-150.0,0.00019045,2]
[337020773,1725325833440,-346.0545,0.00019078,2]
[337020774,1725325833450,-179.65493734,0.00019078,2]
[337020775,1725325833460,-162.89759772,0.00019078,2]
[337020776,1725325833469,-179.08401675,0.00019078,2]
[337020777,1725325833479,-176.57409593,0.00019078,2]
[337020778,1725325833489,-554.45011232,0.00019078,2]
[337020779,1725325833498,-1889.78259097,0.00019078,2]
[337020780,1725325833508,-924.02891964,0.00019078,2]
[337020781,1725325833518,-534.5533,0.00019078,2]
[337020782,1725325833528,-4245.7141,0.00019078,2]
[337020783,1725325833538,-7500.0,0.00019078,2]
[337020784,1725325833547,-289.20148241,0.00019078,2]
[337020785,1725325833560,-2035.00961352,0.00019078,2]
[337020786,1725325833570,-18.24212023,0.00019087,2]
[337020787,1725325833582,-286.27851319,0.00019087,2]
[337020788,1725325833592,-150.0,0.00019089,2]
[337020789,1725325833605,-2127.52429903,0.000191,2]
[337020790,1725325833626,-872.47570097,0.000191,2]
[337020791,1725325833635,-497.0,0.000191,2]
[337020792,1725325833646,-1500.0,0.00019119,2]
[337020793,1725325833656,-587.0,0.00019125,2]
[337020794,1725325833665,-150.0,0.00019132,2]
[337020795,1725325833674,-1500.0,0.00019138,2]
[337020796,1725325833684,-154.32,0.00019168,2]
[337020797,1725325833693,-412.21991848,0.00019168,2]
[337020798,1725325833702,-1674.54549483,0.00019168,2]
[337020799,1725325833712,-1674.54549483,0.00019168,2]
[337020800,1725325833722,-1674.54549483,0.00019168,2]
[337020801,1725325833731,-154.32,0.00019168,2]
[337020802,1725325833741,-320.22329029,0.00019173,2]
[337020803,1725325833751,-500.0,0.00019173,2]
[337020804,1725325833760,-500.0,0.00019173,2]
[337020805,1725325833769,-631.27958502,0.00019173,2]
[337020806,1725325833779,-500.0,0.00019173,2]
[337020807,1725325833788,-14640.79792633,0.00019175,2]
[337020808,1725325833801,-2328.24924543,0.00019175,2]
[337020809,1725325833811,-500.0,0.00019177,2]
[337020810,1725325833820,-500.0,0.00019177,2]
[337020811,1725325833830,-500.0,0.00019177,2]
[337020812,1725325833839,-500.0,0.00019177,2]
[337020813,1725325833848,-500.0,0.00019177,2]
[337020814,1725325833857,-500.0,0.00019177,2]
[337020815,1725325833867,-340.17941669,0.00019177,2]
[337020816,1725325833876,-500.0,0.00019177,2]
[337020817,1725325833886,-500.0,0.00019177,2]
[337020818,1725325833896,-500.0,0.00019177,2]
[337020819,1725325833905,-500.0,0.00019177,2]
[337020820,1725325833915,-500.0,0.00019177,2]
[337020821,1725325833924,-500.0,0.00019177,2]
[337020822,1725325833933,-500.0,0.00019177,2]
[337020823,1725325833942,-500.0,0.00019177,2]
[337020824,1725325833952,-500.0,0.00019177,2]
[337020825,1725325833961,-500.0,0.00019177,2]
[337020826,1725325833970,-314.38895048,0.00019177,2]
[337020827,1725325833980,-500.0,0.00019177,2]
[337020828,1725325833990,-500.0,0.00019177,2]
[337020829,1725325834000,-500.0,0.00019177,2]
[337020830,1725325834009,-315.56775131,0.00019177,2]
[337020831,1725325834021,-184.43224869,0.00019177,2]
[337020832,1725325834031,-500.0,0.00019177,2]
[337020833,1725325834042,-0.28683397,0.00019177,2]
[337020834,1725325834054,-387.02289021,0.00019177,2]
[337020835,1725325834065,-112.69027582,0.00019177,2]
[337020836,1725325834074,-500.0,0.00019177,2]
[337020837,1725325834084,-382.60626413,0.00019177,2]
[337020838,1725325835371,-117.39373587,0.00019177,2]
[337020839,1725325835382,-500.0,0.00019177,2]
[337020840,1725325835392,-500.0,0.00019177,2]
[337020841,1725325835402,-500.0,0.00019177,2]
[337020842,1725325835411,-374.42528766,0.00019177,2]
[337020843,1725325835423,-125.57471234,0.00019177,2]
[337020844,1725325835433,-500.0,0.00019177,2]
[337020845,1725325835442,-239.74145895,0.00019177,2]
[337020846,1725325835454,-260.25854105,0.00019177,2]
[337020847,1725325835463,-500.0,0.00019177,2]
[337020848,1725325835473,-500.0,0.00019177,2]
[337020849,1725325835483,-500.0,0.00019177,2]
[337020850,1725325835492,-500.0,0.00019177,2]
[337020853,1725325835510,-500.0,0.00019177,2]
[337020854,1725325835520,-500.0,0.00019177,2]
[337020856,1725325835530,-500.0,0.00019177,2]
[337020864,1725325835765,-500.0,0.00019177,2]
[337020865,1725325835825,-500.0,0.00019177,2]
[337020866,1725325835836,-73.96213362,0.00019177,2]
[337020867,1725325835849,-426.03786638,0.00019177,2]
[337020868,1725325835861,-500.0,0.00019177,2]
[337020869,1725325835870,-500.0,0.00019177,2]
[337020870,1725325835881,-162.6967461,0.00019177,2]
[337020871,1725325835891,-500.0,0.00019177,2]
[337020872,1725325835901,-500.0,0.00019177,2]
[337020873,1725325835911,-154.26538752,0.00019177,2]
[337020874,1725325835925,-345.73461248,0.00019177,2]
[337020875,1725325835934,-254.26538752,0.00019177,2]
[337020876,1725325835946,-245.73461248,0.00019177,2]
[337020877,1725325835957,-500.0,0.00019177,2]
[337020878,1725325835967,-500.0,0.00019177,2]
[337020879,1725325835977,-500.0,0.00019177,2]
[337020880,1725325835987,-500.0,0.00019177,2]
[337020881,1725325835996,-500.0,0.00019177,2]
[337020882,1725325836005,-227.01974001,0.00019177,2]
[337020883,1725325836017,-272.98025999,0.00019177,2]
[337020884,1725325836027,-500.0,0.00019177,2]
[337020885,1725325836036,-500.0,0.00019177,2]
[337020886,1725325836047,-117.919149,0.00019177,2]
[337020887,1725325836058,-382.080851,0.00019177,2]
[337020888,1725325836068,-500.0,0.00019177,2]
[337020889,1725325836078,-500.0,0.00019177,2]
[337020890,1725325836088,-500.0,0.00019177,2]
[337020891,1725325836097,-26.11876453,0.00019177,2]
[337020892,1725325836109,-473.88123547,0.00019177,2]
[337020893,1725325836119,-500.0,0.00019177,2]
[337020894,1725325836128,-183.27876453,0.00019177,2]
[337020895,1725325836140,-316.72123547,0.00019177,2]
[337020896,1725325836150,-500.0,0.00019177,2]
[337020897,1725325836159,-500.0,0.00019177,2]
[337020898,1725325836168,-94.7988731,0.00019177,2]
[337020899,1725325836180,-405.2011269,0.00019177,2]
[337020900,1725325836191,-500.0,0.00019177,2]
[337020901,1725325836200,-500.0,0.00019177,2]
[337020902,1725325836211,-500.0,0.00019177,2]
[337020903,1725325836222,-500.0,0.00019177,2]
[337020904,1725325836232,-500.0,0.00019177,2]
[337020905,1725325836242,-500.0,0.00019177,2]
[337020906,1725325836251,-281.79285213,0.00019177,2]
[337020907,1725325836264,-218.20714787,0.00019177,2]
[337020908,1725325836276,-500.0,0.00019177,2]
[337020909,1725325836287,-246.48357719,0.00019177,2]
[337020910,1725325836302,-253.51642281,0.00019177,2]
[337020911,1725325836311,-500.0,0.00019177,2]
[337020912,1725325836320,-600.0,0.00019177,2]
[337020913,1725325836331,-500.0,0.00019177,2]
[337020914,1725325836340,-500.0,0.00019177,2]
[337020915,1725325836349,-500.0,0.00019177,2]
[337020916,1725325836359,-500.0,0.00019177,2]
[337020917,1725325836368,-500.0,0.00019177,2]
[337020918,1725325836377,-500.0,0.00019177,2]
[337020919,1725325836387,-500.0,0.00019177,2]
[337020920,1725325836396,-500.0,0.00019177,2]
[337020921,1725325836405,-500.0,0.00019177,2]
[337020922,1725325836415,-500.0,0.00019177,2]
[337020923,1725325836424,-500.0,0.00019177,2]
[337020924,1725325836433,-157.73215806,0.00019177,2]
[337020925,1725325836445,-342.26784194,0.00019177,2]
[337020926,1725325836454,-178.85653006,0.00019177,2]
[337020927,1725325836465,-321.14346994,0.00019177,2]
[337020928,1725325836474,-274.41903006,0.00019177,2]
[337020929,1725325836485,-225.58096994,0.00019177,2]
[337020930,1725325836495,-500.0,0.00019177,2]
[337020931,1725325836507,-500.00000001,0.00019177,2]
[337020932,1725325836517,-500.0,0.00019177,2]
[337020933,1725325836526,-500.0,0.00019177,2]
[337020934,1725325836535,-500.0,0.00019177,2]
[337020935,1725325836556,-455.61146026,0.00019177,2]
[337020936,1725325836565,-188.75297818,0.00019177,2]
[337020937,1725325836574,-150.0,0.00019177,2]
[337020938,1725325836583,-150.0,0.00019177,7]
[337020939,1725325836592,-535.0,0.00019178,2]
[337020940,1725325836605,-1166.84101162,0.00019178,2]
[337020941,1725325836616,-360.59657877,0.00019178,2]
[337020942,1725325836625,-313877.87024679,0.00019178,2]
[337020943,1725325836634,-193.443028,0.00019178,2]
[337020944,1725325836646,-193.443028,0.00019178,2]
[337020945,1725325836655,-193.443028,0.00019178,2]
[337020946,1725325836664,-193.443028,0.00019178,2]
[337020947,1725325836673,-193.443032,0.00019178,2]
[337020948,1725325836683,-151.0,0.00019178,2]
[337020949,1725325836693,-151.0,0.00019178,2]
[337020950,1725325836702,-151.0,0.00019178,2]
[337020951,1725325836711,-194.375786,0.00019178,2]
[337020952,1725325836720,-156.996575,0.00019178,2]
[337020953,1725325836729,-1694.793445,0.00019178,2]
[337020954,1725325836738,-1694.793445,0.00019178,2]
[337020955,1725325836747,-1694.793445,0.00019178,2]
[337020956,1725325836757,-1694.793445,0.00019178,2]
[337020957,1725325836766,-1694.793445,0.00019178,2]
[337020958,1725325836776,-1694.793445,0.00019178,2]
[337020959,1725325836785,-1694.793445,0.00019178,2]
[337020960,1725325836796,-15192.75313,0.00019178,2]
[337020961,1725325836805,-15192.75313,0.00019178,2]
[337020962,1725325836815,-15192.75313,0.00019178,2]
[337020963,1725325836824,-15192.75313,0.00019178,2]
[337020964,1725325836833,-15192.75313,0.00019178,2]
[337020965,1725325836842,-10180.80708779,0.00019178,2]
[337020966,1725325837206,-251.03914311,0.00019178,2]
[337020983,1725325838411,-500.0,0.00019173,2]
[337020986,1725325838420,-614.47748706,0.00019178,2]
[337020988,1725325838433,-618.16661735,0.00019178,2]
[337020989,1725325838444,-329.43847413,0.00019178,2]
[337020990,1725325838456,-1194.1931649,0.00019178,2]
[337020991,1725325838467,-2004.63115566,0.00019178,2]
[337020992,1725325838475,-963.41884434,0.00019178,2]
[337020993,1725325838487,-4888.27761967,0.00019178,2]
[337020994,1725325838498,-815.0,0.00019178,2]
[337020995,1725325838509,-7457.2856901,0.00019178,2]
[337020996,1725325838520,-1068.77097589,0.00019178,2]
[337020997,1725325838530,-818.034944,0.00019178,2]
[337020998,1725325838539,-818.034944,0.00019178,2]
[337020999,1725325838548,-35.39487927,0.00019178,2]
[337021000,1725325838560,-782.64006473,0.00019178,2]
[337021001,1725325838569,-818.034944,0.00019178,2]
[337021002,1725325838579,-818.034944,0.00019178,2]
[337021003,1725325838588,-263.369834,0.00019178,2]
[337021004,1725325838605,-554.66511,0.00019178,2]
[337021005,1725325838614,-818.034944,0.00019178,2]
[337021006,1725325838624,-476.31757545,0.00019178,2]
[337021007,1725325838636,-85.72599055,0.00019178,2]
[337021008,1725325838647,-562.043566,0.00019178,2]
[337021009,1725325838658,-562.043566,0.00019178,2]
[337021010,1725325838668,-562.043566,0.00019178,2]
[337021011,1725325838680,-562.043566,0.00019178,2]
[337021012,1725325838690,-396.50329263,0.00019178,2]
[337021013,1725325838706,-165.54027337,0.00019178,2]
[337021014,1725325838718,-562.043566,0.00019178,2]
[337021015,1725325838728,-500.0,0.00019178,2]
[337021016,1725325838738,-500.0,0.00019178,2]
[337021017,1725325838748,-500.0,0.00019178,2]
[337021018,1725325838758,-500.0,0.00019178,2]
[337021019,1725325838769,-500.0,0.00019178,2]
[337021020,1725325838780,-500.0,0.00019178,2]
[337021021,1725325838789,-500.0,0.00019178,2]
[337021023,1725325838799,-500.0,0.00019178,2]
[337021025,1725325838808,-500.0,0.00019178,2]
[337021027,1725325838818,-500.0,0.00019178,2]
[337021029,1725325838827,-500.0,0.00019178,2]
[337021030,1725325838837,-500.0,0.00019178,2]
[337021032,1725325838846,-246.2095167,0.00019178,2]
[337021036,1725325838868,-253.7904833,0.00019178,2]
[337021038,1725325838877,-500.0,0.00019178,2]
[337021040,1725325838887,-500.0,0.00019178,2]
[337021042,1725325838897,-500.0,0.00019178,2]
[337021044,1725325838906,-500.0,0.00019178,2]
[337021046,1725325838915,-644.86054387,0.00019178,2]
[337021047,1725325838924,-500.0,0.00019178,2]
[337021049,1725325838933,-500.0,0.00019178,2]
[337021051,1725325838942,-500.0,0.00019178,2]
[337021053,1725325838951,-500.0,0.00019178,2]
[337021054,1725325838961,-500.0,0.00019178,2]
[337021056,1725325838970,-500.0,0.00019178,2]
[337021059,1725325838979,-500.0,0.00019178,2]
[337021061,1725325838988,-500.0,0.00019178,2]
[337021063,1725325838997,-500.0,0.00019178,2]
[337021065,1725325839006,-500.0,0.00019178,2]
[337021067,1725325839015,-500.0,0.00019178,2]
[337021068,1725325839024,-500.0,0.00019178,2]
[337021069,1725325839034,-500.0,0.00019178,2]
[337021070,1725325839043,-500.0,0.00019178,2]
[337021071,1725325839053,-500.0,0.00019178,2]
[337021072,1725325839062,-500.0,0.00019178,2]
[337021073,1725325839071,-500.0,0.00019178,2]
[337021074,1725325839080,-500.0,0.00019178,2]
[337021075,1725325839090,-500.0,0.00019178,2]
[337021076,1725325839099,-500.0,0.00019178,2]
[337021077,1725325839108,-490.45771516,0.00019178,2]
[337021078,1725325839116,-500.0,0.00019178,2]
[337021079,1725325839125,-500.0,0.00019178,2]
[337021080,1725325839135,-500.0,0.00019178,2]
[337021081,1725325839144,-500.0,0.00019178,2]
[337021082,1725325839153,-502.88134796,0.00019178,2]
[337021083,1725325839165,-502.19252877,0.00019178,2]
[337021084,1725325839174,-500.0,0.00019178,2]
[337021085,1725325839185,-224.64743672,0.00019178,2]
[337021086,1725325839194,-874.87,0.00019178,2]
[337021087,1725325839204,-874.87,0.00019178,2]
[337021088,1725325839213,-874.87,0.00019178,2]
[337021089,1725325839222,-874.87,0.00019178,2]
[337021090,1725325839231,-874.87,0.00019178,2]
[337021091,1725325839241,-874.87,0.00019178,2]
[337021092,1725325839250,-874.87,0.00019178,2]
[337021093,1725325839259,-874.87,0.00019178,2]
[337021094,1725325839268,-874.87,0.00019178,2]
[337021095,1725325839278,-874.87,0.00019178,2]
[337021096,1725325839287,-874.87,0.00019178,2]
[337021097,1725325839297,-874.87,0.00019178,2]
[337021098,1725325839306,-874.87,0.00019178,2]
[337021099,1725325839316,-874.87,0.00019178,2]
[337021100,1725325839326,-874.87,0.00019178,2]
[337021101,1725325839335,-874.87,0.00019178,2]
[337021102,1725325839344,-874.87,0.00019178,2]
[337021103,1725325839353,-874.87,0.00019178,2]
[337021104,1725325839362,-874.87,0.00019178,2]
[337021105,1725325839370,-874.87,0.00019178,2]
[337021106,1725325839379,-874.87,0.00019178,2]
[337021107,1725325839389,-874.87,0.00019178,2]
[337021108,1725325839398,-874.87,0.00019178,2]
[337021109,1725325839408,-875.10774454,0.00019178,2]
[337021110,1725325839417,-625.42,0.00019178,2]
[337021111,1725325839426,-625.42,0.00019178,2]
[337021112,1725325839435,-625.42,0.00019178,2]
[337021113,1725325839445,-625.42,0.00019178,2]
[337021114,1725325839456,-625.42,0.00019178,2]
[337021115,1725325839465,-625.42,0.00019178,2]
[337021116,1725325839475,-625.42,0.00019178,2]
[337021117,1725325839485,-625.42,0.00019178,2]
[337021118,1725325839495,-625.42,0.00019178,2]
[337021119,1725325839506,-625.42,0.00019178,2]
[337021120,1725325839515,-625.42,0.00019178,2]
[337021121,1725325839524,-625.42,0.00019178,2]
[337021122,1725325839534,-625.42,0.00019178,2]
[337021123,1725325839549,-625.42,0.00019178,2]
[337021124,1725325839558,-625.42,0.00019178,2]
[337021125,1725325839568,-625.42,0.00019178,2]
[337021126,1725325839577,-625.42,0.00019178,2]
[337021127,1725325839586,-625.42,0.00019178,2]
[337021128,1725325839597,-625.42,0.00019178,2]
[337021129,1725325839609,-625.42,0.00019178,2]
[337021130,1725325839619,-625.42,0.00019178,2]
[337021131,1725325839628,-625.42,0.00019178,2]
[337021132,1725325839638,-625.42,0.00019178,2]
[337021133,1725325839647,-625.47519935,0.00019178,2]
[337021134,1725325839657,-500.0,0.00019178,2]
[337021135,1725325839667,-500.0,0.00019178,2]
[337021136,1725325839676,-500.0,0.00019178,2]
[337021137,1725325839685,-500.0,0.00019178,2]
[337021138,1725325839694,-500.0,0.00019178,2]
[337021139,1725325839705,-500.0,0.00019178,2]
[337021140,1725325839716,-500.0,0.00019178,2]
[337021141,1725325839728,-500.0,0.00019178,2]
[337021142,1725325839739,-500.0,0.00019178,2]
[337021143,1725325839749,-500.0,0.00019178,2]
[337021144,1725325839761,-500.0,0.00019178,2]
[337021145,1725325839771,-500.0,0.00019178,2]
[337021146,1725325839782,-500.0,0.00019178,2]
[337021147,1725325839793,-500.0,0.00019178,2]
[337021148,1725325839802,-500.0,0.00019178,2]
[337021149,1725325839812,-500.0,0.00019178,2]
[337021150,1725325839820,-500.0,0.00019178,2]
[337021151,1725325839829,-500.0,0.00019178,2]
[337021152,1725325839839,-622.51270622,0.00019178,2]
[337021153,1725325839849,-500.0,0.00019178,2]
[337021154,1725325839859,-500.0,0.00019178,2]
[337021155,1725325839869,-500.0,0.00019178,2]
[337021156,1725325839878,-500.0,0.00019178,2]
[337021157,1725325839888,-500.0,0.00019178,2]
[337021158,1725325839898,-361.41104248,0.00019178,2]
[337021159,1725325839909,-1846.44,0.00019178,2]
[337021160,1725325839920,-1846.44,0.00019178,2]
[337021161,1725325839929,-1846.44,0.00019178,2]
[337021162,1725325839941,-1846.44,0.00019178,2]
[337021163,1725325839951,-1846.44,0.00019178,2]
[337021164,1725325839962,-1846.44,0.00019178,2]
[337021165,1725325839972,-1846.44,0.00019178,2]
[337021166,1725325839983,-1846.44,0.00019178,2]
[337021167,1725325839995,-1846.44,0.00019178,2]
[337021168,1725325840004,-1846.44,0.00019178,2]
[337021169,1725325840014,-500.0,0.00019178,2]
[337021170,1725325840024,-1846.44,0.00019178,2]
[337021171,1725325840034,-500.0,0.00019178,2]
[337021172,1725325840045,-1846.44,0.00019178,2]
[337021173,1725325840056,-500.0,0.00019178,2]
[337021174,1725325840066,-500.0,0.00019178,2]
[337021175,1725325840076,-1846.44,0.00019178,2]
[337021176,1725325840086,-500.0,0.00019178,2]
[337021178,1725325840095,-1846.44,0.00019178,2]
[337021179,1725325840106,-313.16526384,0.00019178,2]
[337021180,1725325840115,-1846.44,0.00019178,2]
[337021181,1725325840126,-1846.44,0.00019178,2]
[337021182,1725325840136,-1846.44,0.00019178,2]
[337021183,1725325840145,-1846.44,0.00019178,2]
[337021184,1725325840155,-1846.44,0.00019178,2]
[337021185,1725325840164,-502.09021329,0.00019178,2]
[337021186,1725325840173,-1846.44,0.00019178,2]
[337021187,1725325840183,-1846.44,0.00019178,2]
[337021188,1725325840194,-1846.44,0.00019178,2]
[337021189,1725325840203,-1846.44,0.00019178,2]
[337021190,1725325840213,-1846.52518405,0.00019178,2]
[337021191,1725325840222,-500.0,0.00019178,2]
[337021193,1725325840231,-500.0,0.00019178,2]
[337021194,1725325840240,-500.0,0.00019178,2]
[337021195,1725325840251,-500.0,0.00019178,2]
[337021196,1725325840259,-500.0,0.00019178,2]
[337021197,1725325840268,-500.0,0.00019178,2]
[337021198,1725325840278,-500.0,0.00019178,2]
[337021199,1725325840288,-743.4,0.00019178,2]
[337021201,1725325840297,-500.0,0.00019178,2]
[337021202,1725325840306,-743.4,0.00019178,2]
[337021203,1725325840316,-500.0,0.00019178,2]
[337021204,1725325840327,-743.4,0.00019178,2]
[337021205,1725325840336,-500.0,0.00019178,2]
[337021206,1725325840346,-743.4,0.00019178,2]
[337021207,1725325840356,-500.0,0.00019178,2]
[337021208,1725325840368,-743.4,0.00019178,2]
[337021209,1725325840377,-500.0,0.00019178,2]
[337021210,1725325840386,-743.4,0.00019178,2]
[337021211,1725325840395,-500.0,0.00019178,2]
[337021213,1725325840404,-743.4,0.00019178,2]
[337021214,1725325840631,-500.0,0.00019178,2]
[337021215,1725325840641,-743.4,0.00019178,2]
[337021216,1725325840652,-389.39143112,0.00019178,2]
[337021217,1725325840661,-743.4,0.00019178,2]
[337021218,1725325840671,-743.4,0.00019178,2]
[337021219,1725325840681,-743.4,0.00019178,2]
[337021220,1725325840691,-743.4,0.00019178,2]
[337021221,1725325840701,-743.4,0.00019178,2]
[337021222,1725325840710,-743.4,0.00019178,2]
[337021223,1725325840719,-743.4,0.00019178,2]
[337021224,1725325840729,-743.4,0.00019178,2]
[337021225,1725325840738,-1087.01,0.00019178,2]
[337021226,1725325840747,-743.4,0.00019178,2]
[337021227,1725325840756,-1087.01,0.00019178,2]